bitfinex/quotes_BTCUSD_20241205
["timestamp","ask_amount","ask_price","bid_price","bid_amount"]
[1733375624515,0.12811662,103150.0,103140.0,0.08726]
[1733375624726,0.12811662,103150.0,103140.0,0.1281026]
[1733375625503,0.12829246,103150.0,103140.0,0.1281026]
[1733375626555,0.36721134,103160.0,103140.0,0.1281026]
[1733375626725,0.36721134,103160.0,103140.0,0.12827844]
[1733375627733,0.36721134,103160.0,103140.0,0.21553844]
[1733375627938,0.17332534,103160.0,103140.0,0.21553844]
[1733375628147,0.01436736,103160.0,103140.0,0.12827244]
[1733375628352,0.193875,103160.0,103140.0,0.21552644]
[1733375629272,0.38775,103160.0,103140.0,0.21552644]
[1733375629654,0.51295,103160.0,103140.0,0.21552644]
[1733375631055,0.51295,103160.0,103140.0,0.12827244]
[1733375631475,0.51295,103160.0,103140.0,0.21553144]
[1733375631681,1.5,103150.0,103140.0,0.12827244]
[1733375632269,0.51195,103160.0,103140.0,0.12827244]
[1733375632457,0.51195,103160.0,103140.0,0.21553144]
[1733375632658,0.51195,103160.0,103140.0,0.12827244]
[1733375633299,1.5,103150.0,103140.0,0.12827244]
[1733375634555,1.5,103150.0,103140.0,0.32827244]
[1733375636087,1.5,103150.0,103140.0,0.24101844]
[1733375636299,1.774492,103150.0,103140.0,0.24101844]
[1733375636515,0.43295,103160.0,103140.0,0.24101844]
[1733375636729,0.193892,103150.0,103140.0,0.24101844]
[1733375638267,0.193892,103150.0,103140.0,0.24188624]
[1733375638732,0.4346966,103160.0,103140.0,0.24188624]
[1733375638950,0.6285836,103160.0,103140.0,0.24188624]
[1733375639606,0.7091836,103160.0,103140.0,0.24188624]
[1733375641697,1.5,103150.0,103140.0,0.24188624]
[1733375643265,0.193892,103150.0,103140.0,0.24188624]
[1733375646596,0.5163076,103160.0,103140.0,0.24188624]
[1733375646808,0.193892,103150.0,103140.0,0.24188624]
[1733375647630,0.275092,103150.0,103140.0,0.20104364]
[1733375647832,0.44436805,103150.0,103140.0,0.20104364]
[1733375649801,0.4795621,103150.0,103140.0,0.20104364]
[1733375650017,0.5795621,103150.0,103140.0,0.20104364]
[1733375650890,0.4795621,103150.0,103140.0,0.20104364]
[1733375651100,0.5674755,103150.0,103140.0,0.20104364]
[1733375651778,0.3735835,103150.0,103140.0,0.20104364]
[1733375651988,0.2,103140.0,103100.0,0.00289548]
[1733375652194,0.193967,103110.0,103100.0,0.00117906]
[1733375652866,0.193967,103110.0,103100.0,0.0008681]
[1733375653525,0.193967,103110.0,103100.0,0.00104427]
[1733375655039,0.193986,103100.0,103080.0,0.18219446]
[1733375655248,0.193986,103100.0,103080.0,0.32629218]
[1733375655745,0.193986,103100.0,103080.0,0.41359718]
[1733375655953,0.46572417,103110.0,103080.0,0.31658618]
[1733375656176,0.48016107,103110.0,103080.0,0.40389118]
[1733375656386,0.48016107,103110.0,103080.0,0.31658618]
[1733375656387,0.67414107,103110.0,103080.0,0.31658618]
[1733375656605,0.48017407,103110.0,103080.0,0.31658618]
[1733375656872,0.67415907,103110.0,103080.0,0.31658618]
[1733375657289,0.19399,103100.0,103080.0,0.22928118]
[1733375657492,0.38798,103100.0,103080.0,0.22928118]
[1733375658136,0.19399,103100.0,103080.0,0.39679118]
[1733375660510,0.48017207,103110.0,103080.0,0.39679118]
[1733375660952,0.193988,103100.0,103080.0,0.39679118]
[1733375661368,0.193988,103100.0,103080.0,0.30948118]
[1733375661570,1.5,103100.0,103080.0,0.30948118]
[1733375662037,1.693988,103100.0,103080.0,0.39679118]
[1733375662239,1.5,103100.0,103080.0,0.39679118]
[1733375662692,1.5,103100.0,103080.0,0.44545938]
[1733375663648,1.5,103100.0,103080.0,0.53276438]
[1733375664087,1.5,103100.0,103080.0,0.44545438]
[1733375664305,1.693986,103100.0,103080.0,0.44545438]
[1733375664970,1.5,103100.0,103080.0,0.44545438]
[1733375666007,1.5,103100.0,103080.0,0.44483806]
[1733375666643,0.67588947,103110.0,103080.0,0.44483806]
[1733375667026,0.48190747,103110.0,103080.0,0.54184406]
[1733375667245,0.67589047,103110.0,103080.0,0.44483806]
[1733375667660,1.693988,103100.0,103080.0,0.35753306]
[1733375668204,1.693988,103100.0,103080.0,0.45454006]
[1733375669623,1.693988,103100.0,103080.0,0.0008682]
[1733375669624,1.887985,103100.0,103080.0,0.0008682]
[1733375669832,0.581985,103100.0,103080.0,0.0008682]
[1733375670241,1.5,103090.0,103080.0,0.0008682]
[1733375671137,1.5,103090.0,103080.0,0.1309682]
[1733375671347,1.5,103090.0,103080.0,0.2279802]
[1733375671563,0.387984,103100.0,103080.0,0.26197995]
[1733375672780,1.5,103090.0,103080.0,0.26197995]
[1733375672967,1.5,103090.0,103080.0,0.361656]
[1733375674529,1.5,103090.0,103080.0,0.364156]
[1733375676244,0.0017366,103100.0,103090.0,0.097]
[1733375676447,0.0017366,103100.0,103090.0,0.152816]
[1733375676654,1.5,103100.0,103090.0,0.152816]
[1733375677555,1.5,103100.0,103090.0,0.234216]
[1733375680854,1.5,103100.0,103090.0,0.33389205]
[1733375681292,1.5,103100.0,103090.0,0.38299205]
[1733375681735,0.81669299,103130.0,103100.0,0.272274]
[1733375681951,0.81669299,103130.0,103100.0,0.41276084]
[1733375682181,0.62275099,103130.0,103100.0,0.41276084]
[1733375682410,0.81669599,103130.0,103100.0,0.41276084]
[1733375682622,1.5,103120.0,103100.0,0.41276084]
[1733375685318,1.5,103120.0,103110.0,0.096983]
[1733375685540,0.15,103140.0,103130.0,0.180064]
[1733375686440,0.15,103140.0,103130.0,0.32785624]
[1733375686660,0.48963879,103170.0,103140.0,0.193906]
[1733375686885,0.00905518,103160.0,103140.0,0.193906]
[1733375687105,1.5,103150.0,103140.0,0.193901]
[1733375687334,1.5,103150.0,103140.0,0.2459048]
[1733375688014,1.50017633,103150.0,103140.0,0.2459048]
[1733375688468,1.50191293,103150.0,103140.0,0.2459048]
[1733375688666,1.50191293,103150.0,103140.0,0.1489538]
[1733375689380,1.50191293,103150.0,103140.0,0.0520038]
[1733375689595,1.50191293,103150.0,103140.0,0.1489588]
[1733375689805,1.50191293,103150.0,103140.0,0.096955]
[1733375690053,0.00191293,103150.0,103140.0,0.096955]
[1733375690702,0.00191293,103150.0,103130.0,0.226459]
[1733375690917,0.19580493,103150.0,103130.0,0.277023]
[1733375691160,0.19580493,103150.0,103130.0,0.2077613]
[1733375691375,0.38970893,103150.0,103130.0,0.2077613]
[1733375691588,1.5,103140.0,103130.0,0.2077613]
[1733375692459,0.19580493,103150.0,103130.0,0.3047253]
[1733375693141,0.00191293,103150.0,103130.0,0.3047253]
[1733375693370,0.00191293,103150.0,103130.0,0.4016843]
[1733375693824,0.00191293,103150.0,103130.0,0.3047203]
[1733375694463,0.19580493,103150.0,103130.0,0.3047203]
[1733375694918,0.38969793,103150.0,103130.0,0.2077613]
[1733375695355,0.19580493,103150.0,103130.0,0.3047253]
[1733375695796,0.00191293,103150.0,103130.0,0.4016893]
[1733375696011,0.00191293,103150.0,103130.0,0.3047253]
[1733375696228,0.19580593,103150.0,103130.0,0.3047253]
[1733375696447,0.38969893,103150.0,103130.0,0.2077613]
[1733375696663,0.19580593,103150.0,103130.0,0.3047253]
[1733375698323,0.20918662,103150.0,103130.0,0.3047253]
[1733375699194,0.0808,103140.0,103110.0,0.35805298]
[1733375699404,0.045,103130.0,103110.0,0.15]
[1733375699624,0.193948,103120.0,103110.0,0.15]
[1733375699830,0.43288,103130.0,103110.0,0.246982]
[1733375700072,0.43288,103130.0,103110.0,0.326482]
[1733375700303,0.626824,103130.0,103110.0,0.326482]
[1733375700523,0.626824,103130.0,103110.0,0.2295]
[1733375700751,0.626823,103130.0,103110.0,0.2295]
[1733375700974,0.43288,103130.0,103110.0,0.326482]
[1733375701648,0.19394,103130.0,103110.0,0.3785277]
[1733375701863,0.38788,103130.0,103110.0,0.3785277]
[1733375702305,0.19394,103130.0,103110.0,0.4755057]
[1733375702534,0.193948,103120.0,103110.0,0.15]
[1733375702753,0.42102405,103120.0,103110.0,0.15]
[1733375702967,0.57102405,103120.0,103110.0,0.15]
[1733375704740,0.59402405,103120.0,103110.0,0.15]
[1733375706725,0.40007605,103120.0,103110.0,0.15]
[1733375706965,0.193968,103110.0,103090.0,0.173497]
[1733375707179,0.41095,103110.0,103090.0,0.173497]
[1733375707578,0.216968,103110.0,103090.0,0.173497]
[1733375707787,0.410946,103110.0,103090.0,0.20088412]
[1733375708211,0.410946,103110.0,103090.0,0.00017617]
[1733375708435,0.604928,103110.0,103090.0,0.00017617]
[1733375708860,0.581928,103110.0,103090.0,0.00017617]
[1733375709075,0.387948,103110.0,103090.0,0.00017617]
[1733375709498,0.70609705,103120.0,103090.0,0.19417517]
[1733375709711,0.216958,103120.0,103100.0,0.173192]
[1733375709923,0.216958,103120.0,103100.0,0.270184]
[1733375710129,0.023,103120.0,103100.0,0.367171]
[1733375710548,0.70022465,103130.0,103100.0,0.09967605]
[1733375710549,0.01840265,103130.0,103100.0,0.09967605]
[1733375710760,0.01334675,103130.0,103110.0,0.096978]
[1733375710967,0.01334675,103130.0,103120.0,0.096974]
[1733375711182,0.43107901,103150.0,103120.0,0.096974]
[1733375711183,0.70048901,103150.0,103120.0,0.193942]
[1733375711402,0.01357273,103140.0,103120.0,0.096968]
[1733375711605,0.52069463,103150.0,103130.0,0.096964]
[1733375712434,0.52069463,103150.0,103120.0,0.096968]
[1733375712435,0.71460363,103150.0,103120.0,0.193936]
[1733375712642,1.5,103130.0,103120.0,0.22976374]
[1733375713274,1.5,103130.0,103120.0,0.32943979]
[1733375713691,1.5,103130.0,103120.0,0.40653979]
[1733375716570,0.24090401,103150.0,103120.0,0.30957179]
[1733375716808,0.24090401,103150.0,103130.0,0.193923]
[1733375717026,0.24090401,103150.0,103130.0,0.14731348]
[1733375717234,0.43479701,103150.0,103130.0,0.24427748]
[1733375717934,0.24090401,103150.0,103130.0,0.24427748]
[1733375718362,0.53447306,103150.0,103120.0,0.22976274]
[1733375718576,0.193911,103140.0,103120.0,0.32673074]
[1733375718804,0.193911,103140.0,103120.0,0.22976274]
[1733375719478,0.193911,103140.0,103120.0,0.32673074]
[1733375720338,0.53448206,103150.0,103130.0,0.096964]
[1733375720568,0.34058006,103150.0,103130.0,0.22660067]
[1733375720798,0.53448506,103150.0,103130.0,0.22660067]
[1733375721025,0.53448206,103150.0,103130.0,0.12963667]
[1733375721683,0.30719515,103150.0,103130.0,0.12963667]
[1733375721941,0.50109815,103150.0,103130.0,0.12963667]
[1733375722955,0.50109815,103150.0,103130.0,0.13050467]
[1733375723411,0.30893115,103150.0,103130.0,0.13050467]
[1733375723750,0.50283415,103150.0,103130.0,0.13050467]
[1733375724290,0.0153531,103150.0,103130.0,0.30976167]
[1733375724527,0.0153531,103150.0,103140.0,0.096955]
[1733375724745,0.0153531,103150.0,103140.0,0.13762667]
[1733375724947,0.001736,103150.0,103140.0,0.13762667]
[1733375725716,0.078436,103150.0,103140.0,0.13762667]
[1733375726542,0.25768198,103170.0,103130.0,0.097825]
[1733375726745,0.193904,103150.0,103130.0,0.09800133]
[1733375726956,0.193904,103150.0,103130.0,0.19496033]
[1733375727389,0.193904,103150.0,103130.0,0.29191933]
[1733375727825,0.193904,103150.0,103130.0,0.19496033]
[1733375728025,0.193904,103150.0,103130.0,0.23238336]
[1733375728451,0.193904,103150.0,103120.0,0.1215821]
[1733375728624,0.19407494,103150.0,103120.0,0.22125815]
[1733375728822,0.19407494,103150.0,103130.0,0.096959]
[1733375729033,0.19407494,103150.0,103130.0,0.193918]
[1733375729440,0.19407494,103150.0,103130.0,0.33239461]
[1733375729650,0.19407494,103150.0,103130.0,0.23543561]
[1733375729851,0.00017094,103150.0,103130.0,0.33239561]
[1733375730045,0.00017094,103150.0,103140.0,0.096955]
[1733375730306,0.00017094,103150.0,103130.0,0.33239561]
[1733375730503,0.00017094,103150.0,103130.0,0.23543561]
[1733375730719,0.00017094,103150.0,103140.0,0.096955]
[1733375730955,0.00017094,103150.0,103140.0,0.13019406]
[1733375731495,0.39121598,103160.0,103140.0,0.13019406]
[1733375731704,0.466371,103160.0,103140.0,0.130365]
[1733375732138,0.466371,103160.0,103140.0,0.09712594]
[1733375732344,0.660257,103160.0,103140.0,0.09712594]
[1733375732612,0.67944606,103160.0,103140.0,0.09712594]
[1733375734779,0.193892,103150.0,103140.0,0.00017094]
[1733375736698,0.29340806,103160.0,103140.0,0.00017094]
[1733375737104,0.48729306,103160.0,103140.0,0.09712594]
[1733375737335,0.48729306,103160.0,103140.0,0.13046889]
[1733375737533,0.68118006,103160.0,103140.0,0.13046889]
[1733375738370,0.48729306,103160.0,103140.0,0.03351389]
[1733375738832,0.193892,103150.0,103140.0,0.03351389]
[1733375739853,0.48729406,103160.0,103140.0,0.00017094]
[1733375740077,0.0090601,103150.0,103140.0,0.00017094]
[1733375740511,0.68118506,103160.0,103140.0,0.07657094]
[1733375741483,0.68118006,103160.0,103140.0,0.17352594]
[1733375741680,0.40869706,103160.0,103140.0,0.17352594]
[1733375741921,0.0090696,103150.0,103140.0,0.21495609]
[1733375742140,1.5,103140.0,103130.0,0.23652848]
[1733375742357,1.5,103140.0,103130.0,0.33620453]
[1733375744967,1.5,103140.0,103130.0,0.41910453]
[1733375746070,1.49,103140.0,103130.0,0.41910453]
[1733375746719,0.00017094,103150.0,103130.0,0.51606353]
[1733375746871,0.00907698,103140.0,103130.0,0.41910453]
[1733375747212,1.50907698,103140.0,103130.0,0.41910453]
[1733375747418,1.5,103140.0,103130.0,0.41910453]
[1733375752236,0.01721732,103150.0,103130.0,0.41910453]
[1733375752466,0.01721732,103150.0,103140.0,0.096955]
[1733375753127,0.01721732,103150.0,103140.0,0.19663105]
[1733375753346,1.51721732,103150.0,103140.0,0.19663105]
[1733375754877,1.51721732,103150.0,103130.0,0.000868]
[1733375754878,0.23881732,103150.0,103130.0,0.000868]
[1733375755087,0.45698932,103140.0,103130.0,0.000868]
[1733375755321,0.447911,103140.0,103130.0,0.000868]
[1733375757152,0.173,103140.0,103130.0,0.000868]
[1733375757580,0.469714,103150.0,103130.0,0.000868]
[1733375757793,0.001736,103160.0,103140.0,0.27601905]
[1733375758003,0.01898346,103160.0,103150.0,0.18885577]
[1733375758211,0.01898346,103160.0,103150.0,0.18017605]
[1733375758416,0.01898346,103160.0,103140.0,0.18446034]
[1733375758623,0.01898346,103160.0,103140.0,0.28413639]
[1733375758895,0.21285646,103160.0,103140.0,0.28413639]
[1733375759336,0.40674346,103160.0,103140.0,0.28413639]
[1733375759480,0.0090633,103150.0,103140.0,0.28413639]
[1733375759997,0.0090633,103150.0,103140.0,0.023]
[1733375760262,0.25,103120.0,103100.0,0.0762677]
[1733375760403,0.15,103120.0,103100.0,0.0762677]
[1733375760605,0.15,103120.0,103100.0,0.17766045]
[1733375760867,0.15,103120.0,103110.0,0.09967605]
[1733375761743,0.38797923,103150.0,103120.0,0.106671]
[1733375761947,0.00906406,103140.0,103120.0,0.17667605]
[1733375762152,1.50906406,103130.0,103120.0,0.17667605]
[1733375762360,1.5,103130.0,103120.0,0.28334705]
[1733375762571,1.5,103130.0,103120.0,0.1975877]
[1733375762774,1.5,103130.0,103120.0,0.30597497]
[1733375762964,1.5,103130.0,103120.0,0.3042587]
[1733375764102,0.00017623,103150.0,103120.0,0.4109297]
[1733375764315,0.00017623,103150.0,103130.0,0.25575212]
[1733375764531,0.00923787,103150.0,103140.0,0.0768]
[1733375765187,0.00923787,103150.0,103140.0,0.17647605]
[1733375765648,0.00923787,103150.0,103140.0,0.17819207]
[1733375765869,0.00017623,103150.0,103140.0,0.17819207]
[1733375766086,0.00017623,103150.0,103140.0,0.19910372]
[1733375766516,0.00017623,103150.0,103140.0,0.26697172]
[1733375766741,0.21091194,103180.0,103140.0,0.2652557]
[1733375766955,5.875e-05,103170.0,103140.0,0.2652557]
[1733375767825,5.875e-05,103170.0,103140.0,0.1973877]
[1733375768045,5.875e-05,103170.0,103140.0,0.1991036]
[1733375768259,5.875e-05,103170.0,103140.0,0.2669716]
[1733375768477,5.875e-05,103170.0,103150.0,0.09967605]
[1733375768693,5.875e-05,103170.0,103150.0,0.13459751]
[1733375768908,5.875e-05,103170.0,103150.0,0.20245751]
[1733375770900,0.00092685,103170.0,103160.0,0.0776]
[1733375771110,0.00092685,103170.0,103160.0,0.17899165]
[1733375771530,1.50092685,103170.0,103160.0,0.17899165]
[1733375771714,0.49770835,103190.0,103160.0,0.1999033]
[1733375771957,0.49770835,103190.0,103160.0,0.19996205]
[1733375772183,0.01005635,103190.0,103160.0,0.19996205]
[1733375772616,1.51005635,103190.0,103160.0,0.19996205]
[1733375773037,1.51005635,103190.0,103160.0,0.26781705]
[1733375773251,1.5,103190.0,103170.0,0.1013916]
[1733375773467,1.5,103190.0,103170.0,0.1281733]
[1733375773896,1.51720406,103190.0,103170.0,0.1281733]
[1733375774769,0.21102206,103190.0,103170.0,0.1281733]
[1733375775204,0.01720406,103190.0,103170.0,0.1281733]
[1733375775438,1.5,103180.0,103170.0,0.1281733]
[1733375775676,0.60121409,103200.0,103170.0,0.1281733]
[1733375776106,1.5,103180.0,103170.0,0.1281733]
[1733375776785,0.42447881,103200.0,103170.0,0.1281733]
[1733375776992,0.61829081,103200.0,103170.0,0.1281733]
[1733375777199,0.193817,103190.0,103170.0,0.1281733]
[1733375778478,0.23066781,103200.0,103180.0,0.0808]
[1733375778700,0.00902947,103190.0,103180.0,0.10624733]
[1733375778917,0.00902947,103190.0,103180.0,0.20592338]
[1733375779127,0.02610705,103200.0,103180.0,0.20592338]
[1733375779344,0.00902933,103200.0,103180.0,0.20592338]
[1733375779559,0.0090279,103200.0,103180.0,0.20592338]
[1733375781596,1.5,103190.0,103180.0,0.20592338]
[1733375782313,1.49996,103190.0,103180.0,0.20592338]
[1733375784073,1.49996,103190.0,103180.0,0.20763866]
[1733375784796,1.51706315,103190.0,103180.0,0.20763866]
[1733375786125,0.01710315,103190.0,103180.0,0.20763866]
[1733375786362,0.0008678,103200.0,103180.0,0.20763866]
[1733375787034,0.0008678,103200.0,103190.0,0.23219127]
[1733375787240,0.0008678,103200.0,103190.0,0.25914602]
[1733375787662,0.01767453,103200.0,103190.0,0.25914602]
[1733375787876,0.0008678,103200.0,103190.0,0.25914602]
[1733375790001,1.51699602,103210.0,103190.0,0.25914602]
[1733375790224,1.71077902,103210.0,103190.0,0.25914602]
[1733375790457,1.51699602,103210.0,103190.0,0.25914602]
[1733375790925,0.01655241,103210.0,103190.0,0.25914602]
[1733375791343,0.3892842,103220.0,103190.0,0.25914602]
[1733375791760,0.193779,103210.0,103190.0,0.25914602]
[1733375792105,1.5,103200.0,103190.0,0.25914602]
[1733375793586,1.693798,103200.0,103180.0,0.121438]
[1733375793811,0.193836,103180.0,103170.0,0.0017356]
[1733375796694,0.563464,103190.0,103170.0,0.0017356]
[1733375796902,0.20287725,103180.0,103170.0,0.0017356]
[1733375797115,0.193836,103180.0,103170.0,0.0017356]
[1733375797561,0.39351205,103180.0,103160.0,5.875e-05]
[1733375797787,0.20289652,103170.0,103160.0,5.875e-05]
[1733375798027,0.193854,103170.0,103160.0,5.875e-05]
[1733375800783,0.193854,103170.0,103130.0,0.04425875]
[1733375800972,0.193892,103150.0,103130.0,0.14582694]
[1733375801257,0.3878,103150.0,103130.0,0.14411103]
[1733375801475,0.58171,103150.0,103130.0,0.17739803]
[1733375801660,1.5,103140.0,103130.0,0.17911408]
[1733375801836,1.5,103140.0,103130.0,0.17739803]
[1733375803117,0.387813,103150.0,103130.0,0.17739803]
[1733375803326,0.387813,103150.0,103130.0,0.17911408]
[1733375803562,1.887813,103150.0,103130.0,0.17911408]
[1733375804196,0.193911,103140.0,103130.0,0.00017623]
[1733375804869,0.270811,103140.0,103130.0,0.00017623]
[1733375805932,0.08581099,103140.0,103130.0,0.00017623]
[1733375806163,0.0769,103140.0,103130.0,0.00017623]
[1733375806358,0.270811,103140.0,103130.0,0.00017623]
[1733375806607,0.270811,103140.0,103130.0,0.00191123]
[1733375810522,0.193911,103140.0,103130.0,0.00191123]
[1733375810735,0.40844726,103150.0,103130.0,0.14958728]
[1733375810957,0.193911,103140.0,103130.0,0.18751601]
[1733375811690,1.5,103140.0,103130.0,0.18751601]
[1733375811931,1.5,103140.0,103130.0,0.1892321]
[1733375812135,0.02063526,103150.0,103130.0,0.2689321]
[1733375812353,0.193886,103160.0,103140.0,0.09967605]
[1733375812576,1.5,103150.0,103140.0,0.11586462]
[1733375813011,1.5,103150.0,103140.0,0.19856462]
[1733375813987,1.5,103150.0,103140.0,0.2002805]
[1733375814225,1.5,103150.0,103140.0,0.2681485]
[1733375814462,1.5,103150.0,103140.0,0.31563262]
[1733375815167,0.02126598,103160.0,103140.0,0.31563262]
[1733375815349,0.02126598,103160.0,103150.0,0.00171576]
[1733375815596,1.5,103160.0,103150.0,0.10139181]
[1733375815810,1.5,103160.0,103150.0,0.12462409]
[1733375816052,1.5,103160.0,103150.0,0.12633986]
[1733375816493,1.5,103160.0,103150.0,0.09967605]
[1733375816721,0.387725,103170.0,103150.0,0.09967605]
[1733375816965,0.193857,103170.0,103150.0,0.09967605]
[1733375817186,0.812541,103180.0,103150.0,0.1013918]
[1733375817631,1.5,103170.0,103150.0,0.1013918]
[1733375818299,1.693855,103170.0,103150.0,0.1013918]
[1733375818541,1.5,103170.0,103150.0,0.1013918]
[1733375818751,1.5,103170.0,103150.0,0.16753705]
[1733375819214,1.5,103170.0,103150.0,0.23625667]
[1733375819450,1.5,103170.0,103150.0,0.25139467]
[1733375819666,1.5,103170.0,103150.0,0.31925267]
[1733375819894,1.5,103170.0,103160.0,0.11741262]
[1733375820140,1.5,103170.0,103160.0,0.04955762]
[1733375820361,1.5,103170.0,103160.0,0.21708867]
[1733375820585,1.5,103170.0,103160.0,0.29923105]
[1733375820797,0.17113416,103180.0,103160.0,0.29923105]
[1733375821009,0.17113416,103180.0,103170.0,0.00085705]
[1733375821696,1.5,103180.0,103170.0,0.00085705]
[1733375821938,1.5,103180.0,103170.0,0.1683821]
[1733375822150,0.48021183,103210.0,103170.0,0.3166271]
[1733375822371,0.48079948,103210.0,103180.0,0.09967605]
[1733375822576,1.5,103190.0,103180.0,0.10053244]
[1733375822852,1.5,103190.0,103180.0,0.09967605]
[1733375823941,1.5,103190.0,103180.0,0.10053257]
[1733375824650,1.5,103190.0,103180.0,0.29447457]
[1733375824876,1.5,103190.0,103180.0,0.22577605]
[1733375825089,0.41057183,103210.0,103180.0,0.22577605]
[1733375825341,0.21677883,103210.0,103190.0,0.00085617]
[1733375825562,1.5,103200.0,103190.0,0.10053222]
[1733375825773,1.5,103200.0,103190.0,0.09967605]
[1733375825984,0.41057083,103210.0,103190.0,0.09967605]
[1733375826857,0.02299183,103210.0,103200.0,0.10053204]
[1733375827074,1.52299183,103210.0,103200.0,0.10053204]
[1733375828870,1.52299183,103210.0,103200.0,0.17553204]
[1733375829103,1.52299183,103210.0,103200.0,0.22533204]
[1733375829329,1.52299183,103210.0,103200.0,0.22447605]
[1733375831343,1.71677083,103210.0,103200.0,0.22447605]
[1733375831553,1.5,103210.0,103200.0,0.22447605]
[1733375831769,0.193779,103210.0,103200.0,0.22447605]
[1733375831981,0.3892842,103220.0,103200.0,0.22447605]
[1733375832195,0.193779,103210.0,103200.0,0.14947605]
[1733375832414,0.193779,103210.0,103200.0,0.15033174]
[1733375832624,0.38945842,103220.0,103200.0,0.15033174]
[1733375833287,1.5,103210.0,103200.0,0.15033174]
[1733375834653,1.5,103210.0,103200.0,0.22613174]
[1733375834869,1.5,103210.0,103200.0,0.22527605]
[1733375835088,0.02252692,103220.0,103200.0,0.40641505]
[1733375835306,0.02252692,103220.0,103210.0,0.00085504]
[1733375835528,0.02252692,103220.0,103210.0,0.10053109]
[1733375835776,1.52252692,103220.0,103210.0,0.10053109]
[1733375836704,0.001737,103230.0,103210.0,0.10053109]
[1733375836941,0.001737,103230.0,103210.0,0.10070731]
[1733375837236,0.02303353,103230.0,103210.0,0.10070731]
[1733375837464,0.195479,103230.0,103210.0,0.10070731]
[1733375837701,1.501737,103230.0,103220.0,0.09967605]
[1733375837933,0.001737,103230.0,103220.0,0.22567605]
[1733375839291,0.001737,103230.0,103220.0,0.28380405]
[1733375840046,0.010737,103230.0,103220.0,0.28380405]
[1733375840272,0.001737,103230.0,103220.0,0.28380405]
[1733375840538,0.001737,103230.0,103220.0,0.1]
[1733375840759,0.43622199,103230.0,103220.0,0.001]
[1733375840974,0.580649,103230.0,103220.0,0.001]
[1733375841212,0.19376,103220.0,103210.0,0.02403155]
[1733375841450,0.19276,103220.0,103210.0,0.02317622]
[1733375841665,1.5,103220.0,103210.0,0.02317622]
[1733375841878,1.5,103220.0,103210.0,0.02403155]
[1733375841879,1.69376,103220.0,103210.0,0.02403155]
[1733375842544,1.5,103220.0,103210.0,0.02489905]
[1733375842763,0.195492,103230.0,103210.0,0.1245751]
[1733375842997,0.397246,103230.0,103220.0,0.00185485]
[1733375843228,1.703491,103230.0,103220.0,0.00185485]
[1733375843482,1.695491,103230.0,103220.0,0.00085485]
[1733375843701,0.195491,103230.0,103220.0,0.00085485]
[1733375844147,1.695491,103230.0,103220.0,0.00085485]
[1733375844591,1.695491,103230.0,103220.0,0.00185485]
[1733375844592,1.703491,103230.0,103220.0,0.00185485]
[1733375844861,0.1517362,103260.0,103240.0,0.0482]
[1733375845088,0.1517362,103260.0,103240.0,0.04905374]
[1733375845314,0.17286792,103260.0,103240.0,0.15779205]
[1733375845754,0.17286792,103260.0,103240.0,0.09967605]
[1733375846240,0.17286792,103260.0,103240.0,0.15779205]
[1733375846469,0.17286792,103260.0,103240.0,0.09967605]
[1733375846706,0.38965291,103270.0,103240.0,0.09967605]
[1733375846938,0.0016908,103260.0,103240.0,0.09967605]
[1733375847172,0.1076908,103260.0,103240.0,0.10067605]
[1733375847606,0.1016908,103260.0,103240.0,0.09967605]
[1733375847846,0.1016908,103260.0,103240.0,0.10067605]
[1733375848085,0.1016908,103260.0,103230.0,0.21810467]
[1733375848304,0.1016908,103260.0,103230.0,0.32456158]
[1733375848529,0.1,103260.0,103230.0,0.32455758]
[1733375848978,0.1016908,103260.0,103230.0,0.26643558]
[1733375849221,0.45820521,103280.0,103230.0,0.32455758]
[1733375849443,0.008,103260.0,103240.0,0.001]
[1733375849959,0.29334305,103270.0,103240.0,0.05685482]
[1733375850403,0.008,103260.0,103230.0,0.26743558]
[1733375850631,0.008,103260.0,103230.0,0.36683255]
[1733375850851,0.58702605,103270.0,103230.0,0.30771455]
[1733375851072,0.19369,103260.0,103230.0,0.1984]
[1733375851324,0.193708,103250.0,103240.0,0.001]
[1733375851777,0.58706605,103260.0,103240.0,0.001]
[1733375852012,0.193708,103250.0,103240.0,0.001]
[1733375852227,0.39552688,103250.0,103240.0,0.001]
[1733375852506,1.5,103240.0,103230.0,0.15]
[1733375852695,1.89339905,103240.0,103230.0,0.151]
[1733375853117,1.89339905,103240.0,103230.0,0.15]
[1733375853552,0.39339905,103240.0,103230.0,0.15]
[1733375854441,0.39939905,103240.0,103230.0,0.151]
[1733375854649,0.40026655,103240.0,103230.0,0.151]
[1733375856568,0.37746655,103240.0,103230.0,0.151]
[1733375856800,0.17774355,103240.0,103230.0,0.15]
[1733375857030,0.37960989,103240.0,103230.0,0.151]
[1733375857242,0.37746655,103240.0,103230.0,0.151]
[1733375857487,0.39292119,103240.0,103230.0,0.15]
[1733375858396,0.64292119,103240.0,103230.0,0.15]
[1733375859088,0.56495179,103240.0,103230.0,0.15]
[1733375859307,0.27622879,103240.0,103230.0,0.15]
[1733375859522,0.17732214,103240.0,103230.0,0.15]
[1733375859964,0.17232214,103240.0,103230.0,0.15]
[1733375860416,0.17732214,103240.0,103230.0,0.15]
[1733375861737,0.00232213,103240.0,103230.0,0.15]
[1733375861945,0.00900552,103250.0,103230.0,0.15]
[1733375862148,1.987391,103260.0,103230.0,0.15]
[1733375862354,0.006,103240.0,103230.0,0.15]
[1733375862795,0.00900641,103250.0,103230.0,0.15]
[1733375863219,0.006,103250.0,103230.0,0.15]
[1733375863863,0.199705,103250.0,103230.0,0.15]
[1733375864282,0.006,103250.0,103230.0,0.15]
[1733375865167,0.199705,103250.0,103230.0,0.15]
[1733375865601,0.006,103250.0,103230.0,0.15]
[1733375865822,0.199705,103250.0,103230.0,0.15]
[1733375866033,0.39341,103250.0,103230.0,0.15]
[1733375866262,0.199705,103250.0,103230.0,0.1517344]
[1733375866492,0.2005722,103250.0,103230.0,0.1517344]
[1733375866791,0.0008672,103250.0,103230.0,0.1517344]
[1733375867883,0.1945722,103250.0,103230.0,0.1517344]
[1733375868089,0.3882882,103250.0,103230.0,0.1517344]
[1733375868297,0.3932882,103250.0,103230.0,0.1517344]
[1733375868501,0.0058672,103250.0,103230.0,0.1517344]
[1733375868710,0.0008672,103250.0,103230.0,0.1517344]